bitfinex/quotes_ETHUSD_20220201
["timestamp","ask_amount","ask_price","bid_price","bid_amount"]
[1643683381309,0.23343849,2703.2,2702.6,1.29642883]
[1643683381538,0.62927143,2703.3,2702.6,1.29642883]
[1643683381772,0.3,2703.3,2702.6,1.48132883]
[1643683381940,0.3,2703.3,2702.7,1.29642883]
[1643683382139,0.1849,2703.5,2702.8,1.29642883]
[1643683382342,0.23340512,2703.4,2702.9,1.29642883]
[1643683382543,0.4849,2703.6,2702.5,2.03474]
[1643683382744,0.76880084,2703.3,2702.6,1.29635981]
[1643683383045,1.06880084,2703.3,2702.6,1.29635981]
[1643683383247,0.24736576,2703.2,2702.6,1.29635981]
[1643683383443,1.06880084,2703.3,2702.6,1.29635981]
[1643683383858,0.3,2703.3,2702.7,0.92497]
[1643683384145,0.25,2703.7,2702.8,1.29635981]
[1643683384146,0.4349,2703.7,2702.8,1.29635981]
[1643683384347,0.23384212,2703.6,2702.8,1.29635981]
[1643683385791,0.1849,2703.5,2702.8,1.29635981]
[1643683386011,0.23384212,2703.4,2702.8,1.29635981]
[1643683386194,0.1849,2703.9,2702.9,0.92489]
[1643683386392,0.23380381,2703.8,2703.0,1.48125981]
[1643683386590,0.23380381,2703.7,2703.1,1.29635981]
[1643683386790,0.23380381,2703.6,2703.2,1.29635981]
[1643683386991,0.23380381,2703.6,2702.9,1.1849]
[1643683386992,0.23380381,2703.6,2703.0,1.29635981]
[1643683387193,0.25,2703.8,2703.1,0.1849]
[1643683387391,0.25,2703.8,2703.2,1.29635981]
[1643683387392,0.23398431,2703.7,2703.2,1.29635981]
[1643683387791,1.13091389,2703.9,2703.3,1.29635981]
[1643683387992,0.23402607,2703.8,2703.0,0.1849]
[1643683388192,0.23402607,2703.8,2703.1,2.2206104]
[1643683388400,0.23402607,2703.8,2703.2,1.4807004]
[1643683388594,0.23402607,2703.8,2703.3,1.2958004]
[1643683389837,0.48402607,2703.8,2703.3,1.2958004]
[1643683390037,0.23402607,2703.7,2703.3,1.2958004]
[1643683390945,0.41892607,2703.7,2703.3,1.2958004]
[1643683391146,0.23402607,2703.6,2703.2,0.1849]
[1643683391342,0.23402607,2703.6,2703.3,1.28464873]
[1643683391744,0.53402607,2703.6,2702.9,0.1849]
[1643683391944,0.23402607,2703.5,2703.0,1.28399749]
[1643683392147,0.23402607,2703.5,2703.1,1.28399749]
[1643683392345,0.23402607,2703.5,2703.2,1.28399749]
[1643683392549,0.23402607,2703.5,2702.9,1.28399749]
[1643683393489,1.90577507,2703.4,2702.9,1.28399749]
[1643683393687,0.23402607,2703.3,2703.0,1.28399749]
[1643683393990,0.23402607,2703.3,2703.1,1.28399749]
[1643683394190,0.23402607,2703.3,2703.2,1.28399749]
[1643683394430,0.53402607,2703.3,2703.2,1.28399749]
[1643683394593,0.53402607,2703.3,2702.7,1.28399749]
[1643683394792,0.2492611,2703.2,2702.8,1.28399749]
[1643683394992,0.2492611,2703.2,2702.9,1.28399749]
[1643683395193,0.2492611,2703.2,2703.0,1.28399749]
[1643683395393,0.2492611,2703.2,2703.1,1.28399749]
[1643683395798,0.25,2703.6,2702.9,1.28399749]
[1643683396002,0.93599736,2703.8,2702.9,1.28399749]
[1643683396003,0.2492611,2703.5,2702.9,1.28399749]
[1643683396196,0.2492611,2703.4,2703.0,0.1849]
[1643683396456,2.14333626,2704.1,2703.1,1.28399749]
[1643683396653,1.83446982,2704.0,2703.1,1.28399749]
[1643683396853,0.24935891,2703.9,2703.1,1.28399749]
[1643683397253,0.54935891,2703.9,2703.1,1.28399749]
[1643683397455,0.24935891,2703.8,2703.1,1.28399749]
[1643683398856,2.81772691,2703.8,2703.1,1.28399749]
[1643683399059,0.87092273,2703.4,2703.1,1.28399749]
[1643683399258,0.24935891,2703.3,2703.1,1.28399749]
[1643683399458,0.24935891,2703.3,2702.6,0.87278158]
[1643683399459,2.13127981,2703.3,2703.2,1.28399749]
[1643683399657,0.24935891,2703.3,2703.2,1.28399749]
[1643683399860,0.24935891,2703.3,2702.6,1.28399749]
[1643683400061,2.17494122,2703.3,2702.7,1.28399749]
[1643683400294,0.24935891,2703.2,2702.8,1.28399749]
[1643683400491,1.17092273,2703.4,2702.9,1.28399749]
[1643683400492,0.25028873,2703.1,2702.9,1.28399749]
[1643683400691,0.25028873,2703.3,2703.0,1.28399749]
[1643683400992,1.17092273,2703.4,2703.1,1.28399749]
[1643683400993,0.2502834,2703.2,2703.1,1.28399749]
[1643683401394,0.2502834,2703.2,2702.8,1.28399749]
[1643683401593,0.2502834,2703.1,2702.8,1.28399749]
[1643683401892,1.17092273,2703.4,2702.8,1.28399749]
[1643683402094,0.25029853,2703.3,2702.8,1.28399749]
[1643683403293,0.25029853,2703.3,2702.9,1.28399749]
[1643683403494,0.25029853,2703.3,2703.0,1.28399749]
[1643683403698,0.25029853,2703.3,2702.6,1.97187907]
[1643683403938,0.25029853,2703.3,2702.7,1.28399749]
[1643683404143,0.25029853,2703.3,2702.6,1.97187907]
[1643683404341,0.25029853,2703.3,2702.7,1.28399749]
[1643683404541,0.25029853,2703.3,2702.8,1.28399749]
[1643683404741,0.25029853,2703.3,2702.9,1.28399749]
[1643683405042,0.25029853,2703.3,2703.0,1.28399749]
[1643683405242,0.25029853,2703.3,2703.1,1.28399749]
[1643683405542,0.24936917,2703.3,2703.2,1.28399749]
[1643683405740,0.24936917,2703.3,2702.6,0.68788158]
[1643683407995,0.24936917,2703.3,2702.7,3.56424497]
[1643683408702,0.3,2703.4,2702.7,2.87636339]
[1643683408905,0.3,2703.4,2702.7,3.74914497]
[1643683409103,0.55,2703.5,2702.7,3.74914497]
[1643683409302,0.55,2703.5,2702.7,2.87636339]
[1643683409698,0.55,2703.5,2702.7,0.92498]
[1643683410301,0.55,2703.5,2702.6,2.72263158]
[1643683411104,0.55,2703.5,2702.6,0.87278158]
[1643683411105,0.9250557,2703.4,2702.6,0.87278158]
[1643683411323,0.4849,2703.3,2702.5,2.49305829]
[1643683411557,1.22173626,2703.2,2702.5,2.49305829]
[1643683411748,0.40679856,2703.0,2702.5,2.49305829]
[1643683411950,0.81543563,2702.9,2702.5,2.49305829]
[1643683412149,1.36543563,2702.9,2702.5,2.49305829]
[1643683412363,1.36543563,2702.9,2702.2,2.49305829]
[1643683412556,0.185,2702.8,2702.2,2.49305829]
[1643683413554,0.185,2702.8,2702.1,9.93305829]
[1643683414653,1.1102801,2702.8,2702.1,9.93305829]
[1643683414854,0.9252801,2702.8,2702.1,2.49305829]
[1643683416102,0.9252801,2702.8,2702.0,3.1529]
[1643683418706,1.2252801,2702.8,2702.0,3.1529]
[1643683419343,1.36543563,2702.9,2702.1,2.82921153]
[1643683420444,0.55,2702.9,2702.1,2.82921153]
[1643683420645,0.55,2702.9,2702.1,0.92521]
[1643683420853,0.55,2702.9,2702.1,3.51911242]
[1643683421045,0.55,2702.9,2702.1,1.61309158]
[1643683421847,0.55,2702.9,2702.1,3.51402037]
[1643683422045,0.55,2702.9,2702.2,0.185]
[1643683422249,0.55,2702.9,2702.3,0.92514]
[1643683422447,0.9251614,2703.1,2702.4,2.10824329]
[1643683422707,3.146,2703.6,2702.5,0.31207775]
[1643683422910,3.146,2703.6,2702.6,3.40778158]
[1643683423107,3.146,2703.6,2702.9,0.9249]
[1643683423309,3.146,2703.6,2703.0,0.1849]
[1643683424110,3.146,2703.6,2702.8,3.10975]
[1643683424313,3.146,2703.6,2702.9,1.0]
[1643683424509,3.146,2703.6,2703.0,0.1849]
[1643683424710,3.146,2703.6,2703.0,2.14959428]
[1643683424913,3.446,2703.6,2703.0,2.14959428]
[1643683425114,0.3,2703.6,2703.1,0.92488]
[1643683425316,1.445,2703.8,2703.1,0.92488]
[1643683425511,0.25857079,2703.7,2703.2,3.18401543]
[1643683425710,0.25857079,2703.7,2703.3,1.27673708]
[1643683425912,0.25857079,2703.7,2703.4,1.27673708]
[1643683426144,0.25857079,2703.7,2703.5,1.27673708]
[1643683426313,0.25857079,2703.7,2703.2,1.90558355]
[1643683426314,0.25857079,2703.7,2703.1,0.92488]
[1643683426553,0.25857079,2703.7,2703.2,1.27683461]
[1643683426950,0.25703219,2703.7,2703.2,1.27683461]
[1643683428169,0.25703219,2703.7,2703.3,0.92483]
[1643683428367,1.145,2703.8,2703.4,2.0]
[1643683428765,1.145,2703.8,2703.5,0.535]
[1643683429164,1.145,2703.8,2703.5,1.535]
[1643683429365,1.145,2703.8,2703.5,1.45953]
[1643683429564,1.145,2703.8,2703.5,3.00408887]
[1643683429764,1.145,2703.8,2703.5,26.57861887]
[1643683429967,1.445,2703.8,2703.5,3.38406]
[1643683430201,1.445,2703.8,2703.5,4.30863]
[1643683430402,1.445,2703.8,2703.5,6.26998646]
[1643683431007,1.445,2703.8,2703.5,2.45957]
[1643683431202,1.445,2703.8,2703.5,0.92457]
[1643683431406,1.445,2703.8,2703.4,1.84913]
[1643683434850,2.3698862,2703.8,2703.1,1.84954]
[1643683435050,0.1849,2703.7,2702.9,3.4897]
[1643683435653,0.4849,2703.7,2702.9,3.4897]
[1643683435849,0.89551614,2703.6,2702.9,3.4897]
[1643683436052,0.9250191,2703.4,2702.9,3.4897]
[1643683436351,0.4849,2703.3,2702.9,3.10985]
[1643683436549,0.4849,2703.3,2702.9,1.10985]
[1643683436550,0.3,2703.3,2702.9,1.10985]
[1643683436749,0.25,2703.5,2702.9,1.10985]
[1643683436949,1.3299,2703.8,2702.9,1.10985]
[1643683436950,0.3,2703.4,2702.9,1.10985]
[1643683437152,1.695,2703.8,2702.9,1.10985]
[1643683437350,1.695,2703.8,2703.0,0.18473]
[1643683437351,1.445,2703.8,2703.0,0.18473]
[1643683437551,1.695,2703.8,2703.2,0.92477]
[1643683440108,1.695,2703.8,2703.2,1.92477]
[1643683440310,1.695,2703.8,2703.2,0.92477]
[1643683440517,1.445,2703.8,2703.2,0.92477]
[1643683440710,1.445,2703.8,2703.2,1.92477]
[1643683441553,1.445,2703.8,2703.3,1.91994546]
[1643683441753,1.445,2703.8,2703.4,0.92476]
[1643683442561,0.25,2703.9,2703.8,0.21655697]
[1643683444565,0.4849,2704.2,2703.8,0.21655697]
[1643683444764,0.3,2704.2,2703.8,0.21655697]
[1643683445224,0.1849,2704.5,2703.8,0.21655697]
[1643683446237,1.33399997,2704.6,2703.8,1.14117697]
[1643683446431,1.51869997,2704.6,2703.8,1.14117697]
[1643683446729,0.32289997,2704.6,2703.8,1.14117697]
[1643683446930,0.2940084,2704.5,2703.8,1.14117697]
[1643683447736,0.2940084,2704.5,2703.9,1.23599397]
[1643683448132,1.2186233,2704.5,2703.9,1.23599397]
[1643683448365,1.2186233,2704.5,2703.8,0.21655697]
[1643683448366,0.2940084,2704.4,2703.8,0.21655697]
[1643683448533,0.1849,2704.3,2703.8,0.21655697]
[1643683448733,0.2940084,2704.2,2703.8,0.21655697]
[1643683448949,0.3,2704.4,2703.9,2.16031381]
[1643683449148,0.29394686,2704.3,2703.9,0.9246]
[1643683449350,1.4095149,2704.5,2703.9,0.9246]
[1643683449651,0.2940337,2704.4,2703.9,0.9246]
[1643683450048,0.2940337,2704.4,2703.8,0.21655697]
[1643683450249,0.2940337,2704.4,2703.9,0.9246]
[1643683450472,0.2940337,2704.4,2704.0,1.87533106]
[1643683451354,0.3,2704.5,2704.0,1.87533106]
[1643683451551,0.32309997,2704.6,2704.1,0.9245]
[1643683451552,0.62309997,2704.6,2704.1,0.9245]
[1643683451754,0.29470067,2704.5,2704.2,1.97054171]
[1643683451963,0.25,2704.7,2704.2,1.97054171]
[1643683452156,0.25,2704.7,2704.3,1.23363885]
[1643683452353,0.25,2704.7,2703.8,22.86655697]
[1643683452354,0.25,2704.7,2704.4,1.90928433]
[1643683452558,0.25,2704.7,2703.9,2.64209588]
[1643683452800,0.25,2704.7,2704.0,23.8829754]
[1643683453007,0.25,2704.7,2704.1,2.22976559]
[1643683453200,0.25,2704.7,2704.2,1.2329754]
[1643683453400,0.25,2704.7,2704.3,1.99502586]
[1643683453634,0.25,2704.7,2704.1,2.05768446]
[1643683453904,0.25,2704.7,2704.3,2.80649765]
[1643683454102,0.25,2704.7,2704.4,1.23268524]
[1643683454505,0.4847,2705.0,2704.4,1.23268524]
[1643683454710,0.25,2704.9,2704.5,1.88888888]
[1643683454903,0.25,2704.9,2704.3,2.02713178]
[1643683455105,0.25,2704.9,2704.4,1.23172389]
[1643683455506,0.25,2704.9,2704.3,2.02713178]
[1643683455705,0.25,2704.9,2704.4,1.23126582]
[1643683456108,0.25,2704.9,2704.5,2.86534293]
[1643683456306,0.3,2705.0,2704.6,1.90513013]
[1643683456551,0.3,2705.0,2704.5,0.92438]
[1643683456749,0.4847,2705.3,2704.5,0.92438]
[1643683456951,1.23899494,2705.2,2704.5,0.92438]
[1643683457156,0.29430615,2705.1,2704.5,0.92438]
[1643683457351,0.47900615,2705.1,2704.5,0.92438]
[1643683457553,0.4847,2705.1,2704.2,1.84881]
[1643683457753,0.1847,2705.1,2704.3,1.23059416]
[1643683457954,0.1847,2705.1,2704.2,1.84881]
[1643683457955,0.29427772,2705.0,2704.2,1.84881]
[1643683458155,0.1847,2704.9,2704.2,1.84881]
[1643683458554,0.4847,2705.0,2704.2,1.84881]
[1643683458761,1.21030037,2704.6,2704.2,1.84881]
[1643683460215,0.3,2704.6,2704.2,1.84881]
[1643683463007,0.25,2704.7,2704.2,1.84881]
[1643683463212,0.25,2704.7,2703.8,0.21655697]
[1643683463213,2.48546572,2704.6,2703.8,0.21655697]
[1643683463415,0.48525572,2704.5,2703.8,0.21655697]
[1643683463613,2.48566572,2704.4,2703.8,0.21655697]
[1643683463811,0.30076572,2704.3,2703.8,0.21655697]
[1643683464060,0.1849,2704.2,2703.8,0.21655697]
[1643683464259,2.11827703,2704.0,2703.8,0.21655697]
[1643683464456,0.1849,2703.9,2703.8,0.21655697]
[1643683465759,0.50207808,2703.9,2703.8,0.21655697]
[1643683465959,0.80352139,2703.9,2703.8,0.21655697]
[1643683466361,2.62492698,2703.9,2703.8,0.21655697]
[1643683466567,2.62492698,2703.9,2702.9,4.0372]
[1643683466568,0.92512,2703.5,2702.9,0.1849]
[1643683466763,0.48634331,2703.4,2703.0,1.22632415]
[1643683466962,0.48593331,2703.3,2703.0,1.22632415]
[1643683467268,0.1849,2703.2,2703.0,1.22632415]
[1643683467464,0.38619231,2703.2,2703.0,1.22632415]
[1643683467697,0.83780916,2703.1,2703.0,1.22632415]
[1643683467905,1.568651,2703.4,2703.2,0.3]
[1643683468102,1.04886539,2704.2,2703.2,0.3]
[1643683468103,2.4166898,2704.7,2703.3,4.14343417]
[1643683468304,0.30572407,2704.6,2704.5,0.01212904]
[1643683468503,0.68673626,2705.5,2704.5,7.38182904]
[1643683468702,0.30555604,2705.4,2704.6,1.22632415]
[1643683468902,0.30555604,2705.3,2704.7,1.94602415]
[1643683469126,0.30555604,2705.2,2704.8,2.12552237]
[1643683469301,0.30555604,2705.1,2704.9,0.7197]
[1643683469512,0.69373626,2705.8,2704.9,1.64381]
[1643683469900,0.30518127,2705.7,2704.9,2.64381]
[1643683470104,0.30518127,2705.7,2704.9,1.64381]
[1643683470503,0.30518127,2705.7,2705.1,1.84821]
[1643683471109,0.30518127,2705.7,2704.9,0.1847]
[1643683471110,0.33890336,2705.4,2704.9,0.1847]
[1643683471309,0.30518127,2705.3,2704.8,2.08212058]
[1643683471556,0.30518127,2705.2,2704.8,2.08212058]
[1643683471862,0.3,2705.2,2704.9,1.22379966]
[1643683472057,0.007,2705.8,2704.9,1.40849966]
[1643683472258,0.30513642,2705.7,2704.9,0.1847]
[1643683472557,0.60513642,2705.7,2704.9,0.1847]
[1643683472757,0.66891417,2705.6,2704.9,0.1847]
[1643683472957,0.30513642,2705.5,2704.8,3.93049058]
[1643683473158,0.30513642,2705.4,2704.8,3.93049058]
[1643683473356,0.30513642,2705.3,2704.8,3.93049058]
[1643683473558,0.1847,2705.7,2704.8,3.93049058]
[1643683473760,0.30504022,2705.6,2704.8,3.93049058]
[1643683473959,0.1847,2705.5,2704.8,3.93049058]
[1643683474159,0.30504022,2705.4,2704.8,3.93049058]
[1643683474363,0.30504022,2705.4,2704.9,0.1847]
[1643683474558,0.30504022,2705.3,2704.9,0.1847]
[1643683474757,0.30504022,2705.3,2704.8,4.11519058]
[1643683475192,0.30504022,2705.3,2704.8,2.03307]
[1643683476497,0.30504022,2705.3,2704.8,3.03307]
[1643683476698,0.30504022,2705.3,2704.8,3.56807]
[1643683477301,0.3,2705.4,2704.8,3.56807]
[1643683477498,0.3,2705.4,2705.0,0.92416]
[1643683477699,0.007,2705.8,2705.0,0.92416]
[1643683477700,0.1917,2705.8,2705.0,0.92416]
[1643683477899,0.32824658,2705.7,2705.0,0.92416]
[1643683478300,0.62824658,2705.7,2705.0,0.92416]
[1643683478500,0.32824658,2705.6,2705.0,0.92416]
[1643683479744,0.51294658,2705.6,2705.0,0.92416]
[1643683479945,0.32824658,2705.5,2705.0,0.92416]
[1643683480152,0.32824658,2705.4,2705.0,0.92416]
[1643683480547,0.1847,2705.3,2704.7,0.1847]
[1643683480748,0.62824658,2705.2,2704.7,0.1847]
[1643683480949,0.1847,2705.1,2704.8,0.92425]
[1643683481180,0.3,2705.2,2704.8,0.92425]
[1643683481348,0.1847,2705.7,2704.8,0.92425]
[1643683481546,0.3286431,2705.6,2704.8,0.92425]
[1643683481746,0.1847,2705.5,2704.8,0.92425]
[1643683481946,0.72649135,2705.4,2704.8,0.92425]
[1643683482151,0.5133431,2705.3,2704.8,0.92425]
[1643683482349,0.3286431,2705.2,2704.8,0.92425]
[1643683482548,0.6286431,2705.2,2704.8,0.92425]
[1643683482803,0.3,2705.2,2704.8,0.92425]
[1643683483005,0.4847,2705.3,2704.8,0.92425]
[1643683483205,0.32874189,2705.2,2704.8,0.92425]
[1643683483604,0.32874189,2705.2,2704.6,1.86053537]
[1643683483605,0.62874189,2705.2,2704.6,1.84851]
[1643683483807,0.51344189,2705.1,2704.4,1.98681997]
[1643683484008,0.51344189,2705.1,2704.5,1.1991919]
[1643683484009,0.43279451,2704.9,2704.5,1.1991919]
[1643683484210,0.1847,2705.1,2704.5,1.1991919]
[1643683484410,0.32876118,2705.0,2704.5,1.1991919]
[1643683484713,0.4847,2705.3,2704.6,0.92431]
[1643683484908,0.3,2705.1,2704.6,0.92431]
[1643683485105,0.3,2705.1,2704.7,1.19849816]
[1643683485308,0.1847,2705.7,2704.8,1.84832]
[1643683485608,0.32973589,2705.6,2704.8,1.84832]
[1643683485812,0.32973589,2705.5,2704.8,1.84832]
[1643683486010,0.1847,2705.4,2704.8,1.84832]
[1643683486208,1.21415951,2705.3,2704.8,1.84832]
[1643683486465,0.32973589,2705.2,2704.8,1.84832]
[1643683486657,0.3,2705.6,2704.8,1.84832]
[1643683486857,0.3,2705.4,2704.7,1.84835]
[1643683487157,0.32975976,2705.3,2704.7,1.84835]
[1643683487361,0.51445976,2705.2,2704.7,1.84835]
[1643683487557,0.32975976,2705.1,2704.7,1.84835]
[1643683487757,0.3,2705.1,2704.7,1.84835]
[1643683488156,1.07923306,2705.4,2704.7,1.84835]
[1643683488357,0.32978456,2705.3,2704.7,1.84835]
[1643683488559,0.3,2705.3,2704.7,1.84835]
[1643683488757,0.42688041,2705.5,2704.7,1.84835]
[1643683489565,3.23358024,2705.7,2704.8,1.0]
[1643683489566,0.69535652,2705.4,2704.8,1.0]
[1643683490205,0.99535652,2705.4,2704.8,1.0]
[1643683490610,0.38088976,2705.3,2704.8,1.0]
[1643683490810,0.38088976,2705.3,2704.7,1.84835]
[1643683491412,0.99535652,2705.4,2704.7,1.84835]
[1643683491610,0.94535652,2705.4,2704.7,1.84835]
[1643683491812,0.94535652,2705.4,2704.4,2.17150997]
[1643683492215,0.94535652,2705.4,2704.4,3.17150997]
[1643683492912,1.30975913,2705.4,2704.5,1.0]
[1643683493111,1.30975913,2705.4,2704.6,0.92434]
[1643683494953,0.94535652,2705.4,2704.6,0.92434]
[1643683495161,0.25,2705.4,2704.6,1.92434]
[1643683495390,0.09884,2705.6,2704.6,1.92434]
[1643683495559,0.39884,2705.6,2704.6,1.92434]
[1643683495760,2.05806406,2705.6,2704.6,1.92434]
[1643683496158,1.25599976,2705.5,2704.6,1.92434]
[1643683496660,1.55599976,2705.5,2704.6,1.92434]
[1643683497060,1.18975234,2705.5,2704.6,1.92434]
[1643683498302,0.42497925,2705.4,2704.6,1.92434]
[1643683498532,2.41497516,2705.4,2704.6,1.92434]
[1643683498703,2.41497516,2705.4,2704.4,3.38220997]
[1643683498904,2.41497516,2705.4,2704.4,2.3954]
[1643683498905,1.96609508,2705.3,2704.4,2.3954]
[1643683499113,0.09889,2705.2,2704.1,0.1847]
[1643683499606,0.09889,2705.2,2704.0,0.92453]
[1643683500006,1.08327075,2704.9,2704.0,0.92453]
[1643683500212,0.09891,2704.8,2703.9,5.3157]
[1643683502457,1.06629515,2704.9,2703.9,5.3157]
[1643683502659,0.09882,2704.8,2703.9,5.3157]
[1643683502863,0.09882,2704.8,2703.9,7.20895412]
[1643683503058,0.09882,2704.8,2703.9,7.21477727]
[1643683503259,0.09882,2704.8,2703.9,7.21693456]
[1643683503460,0.09882,2704.8,2704.1,1.0]
[1643683503661,0.39876,2705.1,2704.1,1.0]
[1643683503860,0.69876,2705.1,2704.1,1.0]
[1643683504059,0.69876,2705.1,2704.0,1.0]
[1643683504259,0.69876,2705.1,2704.1,0.1847]
[1643683504459,0.68215426,2704.9,2704.1,0.1847]
[1643683504661,0.98215426,2704.9,2704.1,0.1847]
[1643683505197,0.98215426,2704.9,2704.2,0.92447]
[1643683505604,0.3,2704.9,2704.2,0.92447]
[1643683505803,0.39876,2705.1,2704.2,0.92447]
[1643683505804,0.69876,2705.1,2704.3,1.0]
[1643683506003,0.39876,2705.1,2704.3,1.90371948]
[1643683506206,0.3,2705.1,2704.5,1.0]
[1643683506405,0.39886,2705.3,2704.6,2.1124684]
[1643683507006,0.39886,2705.3,2704.5,1.0]
[1643683507204,0.39886,2705.3,2704.6,1.91103341]
[1643683507407,0.39886,2705.3,2704.9,1.0]
[1643683507605,0.3,2705.3,2704.9,1.0]
[1643683507805,0.3,2705.5,2704.9,1.0]
[1643683508043,0.69614894,2705.9,2705.4,1.0]
[1643683508208,0.79886539,2706.2,2705.8,1.0]
[1643683508209,0.69614894,2706.2,2705.8,1.0]
[1643683508410,0.69614894,2706.2,2705.4,0.535]
[1643683508411,0.69614894,2706.5,2706.1,1.0]
[1643683508615,1.48496344,2707.0,2706.0,1.0]
[1643683508616,0.31241032,2706.4,2706.0,1.0]
[1643683508812,0.69614894,2706.6,2706.0,1.0]
[1643683508813,0.31241032,2706.3,2706.0,1.0]
[1643683509090,0.31241032,2706.2,2706.0,1.0]
[1643683509267,0.31241032,2706.1,2706.0,1.0]
[1643683509466,1.00855926,2706.7,2706.0,1.0]
[1643683509866,1.00855926,2706.7,2706.3,1.0]
[1643683510067,0.31241032,2706.6,2706.0,0.92382]
[1643683510267,1.00855926,2706.8,2706.0,1.92382]
[1643683510467,1.00855926,2706.7,2706.0,1.92382]
[1643683510674,0.31241032,2706.6,2706.0,0.92382]
[1643683510873,0.69614894,2706.7,2706.1,1.0]
[1643683510874,0.31241032,2706.5,2706.1,1.0]
[1643683511070,0.31241032,2706.4,2706.2,0.92374]
[1643683511271,1.08886362,2706.9,2706.2,0.92374]
[1643683511272,0.31241032,2706.3,2706.2,0.92374]
[1643683511470,0.31241032,2706.3,2706.2,1.92374]
[1643683511674,0.69614894,2706.7,2706.2,3.96889599]
[1643683511872,0.31241032,2706.6,2706.2,0.92374]
[1643683512072,0.69614894,2706.8,2706.4,1.0]
[1643683512073,0.31241032,2706.5,2706.4,1.0]
[1643683513309,0.31241032,2706.5,2706.2,0.92374]
[1643683513506,0.31241032,2706.5,2706.2,1.92374]
[1643683513704,0.31241032,2706.5,2706.2,1.0]
[1643683514109,0.31241032,2706.5,2706.1,1.84726]
[1643683514509,0.31241032,2706.5,2706.3,2.39551572]
[1643683515912,0.31241032,2706.5,2706.4,1.0]
[1643683516307,0.31241032,2706.5,2706.3,2.39551572]
[1643683518568,4.95,2706.4,2706.3,2.39551572]
[1643683518764,3.66125032,2706.4,2706.3,2.39551572]
[1643683518964,6.46125032,2706.4,2706.3,2.39551572]
[1643683519160,3.66125032,2706.4,2706.3,2.39551572]
[1643683520199,0.71125032,2706.4,2706.3,2.39551572]
[1643683520598,0.61241032,2706.4,2706.3,2.39551572]
[1643683520800,0.31241032,2706.4,2706.3,2.39551572]
[1643683521000,0.31241032,2706.4,2706.3,3.39551572]
[1643683521207,0.31241032,2706.4,2706.3,2.39551572]
[1643683522205,0.61241032,2706.4,2706.3,2.39551572]
[1643683524150,0.61241032,2706.4,2706.3,3.39551572]
[1643683524549,0.61241032,2706.4,2706.3,2.39551572]
[1643683525750,0.61241032,2706.4,2705.5,0.77512425]
[1643683525954,2.45007958,2706.3,2705.3,1.1325]
[1643683526151,0.31241032,2706.2,2705.3,1.1325]
[1643683526356,2.37597307,2706.1,2705.4,0.1847]
[1643683526554,0.31241032,2706.0,2705.4,0.1847]
[1643683526755,0.33082522,2705.3,2705.2,0.1847]
[1643683526959,0.85756387,2705.2,2705.0,0.1847]
[1643683527156,0.85756387,2705.2,2704.7,0.1847]
[1643683527358,0.85756387,2705.2,2704.8,1.22148216]
[1643683527557,0.85756387,2705.2,2704.9,0.1847]
[1643683527806,0.85756387,2705.2,2705.0,1.22148216]
[1643683528209,0.85756387,2705.2,2704.8,0.1847]
[1643683528210,0.1847,2705.8,2705.3,0.17238771]
[1643683528404,0.32367893,2705.1,2704.7,1.84828]
[1643683528603,0.32367893,2705.1,2704.8,1.37904721]
[1643683528805,0.94416255,2705.1,2704.9,1.19434721]
[1643683529812,1.96690447,2706.0,2704.9,1.19434721]
[1643683529813,3.08736387,2706.3,2705.0,1.1214341]
[1643683530010,0.33512382,2706.2,2705.1,1.19434721]
[1643683530208,0.1847,2706.1,2705.1,1.19434721]
[1643683530408,0.33512382,2706.0,2705.2,0.1847]
[1643683530610,0.33512382,2705.9,2705.3,1.19434721]
[1643683530812,0.7990087,2705.6,2705.3,1.19434721]
[1643683531014,0.7990087,2705.6,2705.3,0.92403]
[1643683531211,0.7990087,2705.6,2705.4,1.19434721]
[1643683531459,0.39225817,2706.0,2705.4,3.04211721]
[1643683531662,0.39225817,2706.0,2705.4,4.04211721]
[1643683531962,0.39225817,2706.0,2705.5,1.19434721]
[1643683532160,0.39225817,2706.0,2705.6,1.10858]
[1643683532362,0.33616688,2705.9,2705.6,1.10858]
[1643683532558,0.86262989,2705.8,2705.6,0.92388]
[1643683532957,0.86262989,2705.8,2705.7,1.19267333]
[1643683533159,1.16262989,2705.8,2705.6,0.92388]
[1643683533564,0.1847,2706.5,2705.7,1.19265779]
[1643683533767,0.33625483,2706.4,2705.9,0.92379]
[1643683533964,0.1847,2706.9,2706.0,1.72765779]
[1643683534170,0.35938005,2706.8,2706.0,0.535]
[1643683534364,0.35938005,2706.8,2706.1,0.1847]
[1643683534565,0.89247209,2706.2,2706.1,0.1847]
[1643683534805,0.89247209,2706.2,2706.1,2.03199]
[1643683535206,0.89247209,2706.2,2706.1,3.03199]
[1643683535410,0.88013283,2707.1,2706.1,3.03199]
[1643683535611,0.33604641,2707.0,2706.1,5.12127262]
[1643683535813,0.63604641,2707.0,2706.1,3.03199]
[1643683536012,0.33604641,2706.9,2706.1,3.03199]
[1643683536212,0.33604641,2706.9,2706.1,2.03199]
[1643683536413,0.63604641,2707.0,2706.1,2.03199]
[1643683536614,0.52074641,2706.9,2706.1,2.03199]
[1643683536816,0.72772681,2706.3,2706.1,2.03199]
[1643683537214,1.02772681,2706.3,2706.1,2.03199]
[1643683538216,1.02772681,2706.3,2706.1,1.84729]
[1643683538414,0.3,2706.3,2706.1,1.84729]
[1643683538618,0.1847,2706.9,2706.1,2.84729]
[1643683538817,0.3359759,2706.8,2706.2,0.7197]
[1643683539261,0.3359759,2706.8,2706.2,1.7197]
[1643683539659,0.69055435,2706.5,2706.2,1.7197]
[1643683539862,0.69055435,2706.5,2706.3,0.92352]
[1643683540161,0.69055435,2706.5,2706.4,0.535]
[1643683540360,1.04975019,2706.5,2706.3,0.92352]
[1643683540564,0.37665071,2706.4,2706.3,0.92352]
[1643683540763,1.03573561,2706.4,2706.1,1.84729]
[1643683540963,0.67665071,2706.4,2706.1,1.84729]
[1643683541164,0.35335038,2706.3,2706.1,1.84729]
[1643683541361,0.67665071,2706.4,2706.1,1.84729]
[1643683541563,0.35340049,2706.3,2706.1,1.84729]
[1643683542068,0.1847,2706.2,2706.1,1.84729]
[1643683542260,0.1847,2706.2,2705.7,1.84757]